Cogmind - Beta 12 @@@ ROGUE MODE // 2023.12.05 @ 20:33:43 Player: Mozco Result: Self-destructed Performance ------------- Evolutions (4) 2000 Regions Visited (14) 2800 Robots Destroyed (108) 540 Value Destroyed (4680) 4680 Prototype IDs (3) 60 Alien Tech Used (0) 0 Bonus (3527) 3527 TOTAL SCORE: 13607 Bonus ------- High Alert Combat Kills 699 Follower Combat Kills 728 Entered Garrisons 600 Used RIF Installer 1500 Cogmind --------- Core Integrity 357/850 Matter 280/300 Energy 34/525 System Corruption 8% Temperature Danger (424) Movement Core (1450) Ox28 Location -6/Factory Parts ------- > --- POWER (2) -------- Angular Momentum Engine Antimatter Reactor > --- PROPULSION (4) --- (None) > --- UTILITY (6) ------ Large Storage Unit Advanced Melee Analysis Suite Improved Target Analyzer Improved Heavy Armor Plating Force Field > --- WEAPON (3) ------- Gatling Laser Heavy Ion Cannon Flak Gun > --- INVENTORY (15) --- Melee Analysis Suite Microactuators Improved Utility Shielding Improved Light Armor Plating Damper Plating Relay Coupler [Grunt] (25) Improved Remote Datajack Peak State ------------ > --- POWER ------------ Angular Momentum Engine Antimatter Reactor > --- PROPULSION ------- Heavy Treads Heavy Treads > --- UTILITY ---------- Large Storage Unit Advanced Melee Analysis Suite Improved Target Analyzer Improved Utility Shielding Improved Heavy Armor Plating > --- WEAPON ----------- Proton Cannon Proton Cannon Enhanced Force Lance > --- INVENTORY -------- Carbon-fiber Leg Flexi-carbon Leg Microactuators Improved Utility Shielding Improved Light Armor Plating Damper Plating Force Field Relay Coupler [Grunt] Improved Remote Datajack [Rating: 83] Favorites ----------- Power Improved Deuterium Engine Engine Improved Deuterium Engine Power Core Light Nuclear Core Reactor Antimatter Reactor Propulsion Aluminum Leg Treads Heavy Treads Leg Aluminum Leg Wheel Compact Wheel Hover Unit Gravmag System Flight Unit Cooled VTOL Module Utility Large Storage Unit Device Microactuators Storage Large Storage Unit Processor Visual Processing Unit Hackware Relay Coupler [NC] Protection Improved Utility Shielding Weapon Field Laser Energy Gun Field Laser Energy Cannon Heavy Ion Cannon Ballistic Gun Assault Rifle Launcher Rocket Launcher Special Weapon Remote Datajack Impact Weapon Power Maul Slashing Weapon Ripper Piercing Weapon Enhanced Force Lance Build | -11 -10 -9 -9 -9 -8 -8 -8 -8 -8 -7 -7 -6 -6 -6 ------- Run | Jun Mat Mat Min Exi Min Mat Gar Mat Gar Fac Gar Fac Was Fac Slots Evolved 8 | . . 2 . . . 2 . . . 2 . 2 . . Power 1 | . . . . . . . . . . . . 1 . . Propulsion 2 | . . 2 . . . . . . . . . . . . Utility 4 | . . . . . . 2 . . . 1 . 1 . . Weapon 1 | . . . . . . . . . . 1 . . . . Parts Attached 150 | 5 6 8 2 1 1 2 28 8 15 12 23 6 5 28 Power 21 | 1 . 1 . . . . 2 2 1 . 5 1 2 6 Engine 11 | 1 . 1 . . . . 1 1 1 . 3 1 . 2 Core 5 | . . . . . . . 1 1 . . 2 . . 1 Reactor 5 | . . . . . . . . . . . . . 2 3 Propulsion 54 | 2 2 5 1 . 1 . 9 3 6 8 7 . 2 8 Treads 7 | . 2 . . . . . 1 . 1 . . . 2 1 Leg 39 | . . 5 1 . 1 . 6 2 5 5 7 . . 7 Wheel 4 | 2 . . . . . . 2 . . . . . . . Hover 3 | . . . . . . . . 1 . 2 . . . . Flight 1 | . . . . . . . . . . 1 . . . . Utility 34 | 1 2 . 1 1 . 2 5 . 4 3 6 4 . 5 Device 10 | . 1 . . . . . 4 . . 2 . 1 . 2 Storage 3 | 1 1 . . 1 . . . . . . . . . . Processor 6 | . . . . . . 2 1 . 1 . . 2 . . Hackware 2 | . . . . . . . . . . . 1 1 . . Protection 13 | . . . 1 . . . . . 3 1 5 . . 3 Artifact . | . . . . . . . . . . . . . . . Weapon 41 | 1 2 2 . . . . 12 3 4 1 5 1 1 9 Energy Gun 15 | . 2 2 . . . . 8 1 . . 1 . . 1 Energy Cannon 3 | . . . . . . . . . . . . . . 3 Ballistic Gun 3 | 1 . . . . . . 1 . . . . . . 1 Ballistic Cannon . | . . . . . . . . . . . . . . . Launcher 6 | . . . . . . . 3 2 1 . . . . . Special Weapon 2 | . . . . . . . . . . . 1 1 . . Impact Weapon 5 | . . . . . . . . . 3 . 1 . . 1 Slashing Weapon 5 | . . . . . . . . . . 1 2 . . 2 Piercing Weapon 2 | . . . . . . . . . . . . . 1 1 Special Melee Weapon . | . . . . . . . . . . . . . . . Unidentified Prototypes 1 | . . . . . . . . . . 1 . . . . Corrupted Parts 1 | . . . . . . . 1 . . . . . . . System Corruption 4 | . . . . . . . 4 . . . . . . . Parts Lost 53 | . 1 . . . . . 7 4 10 1 14 . . 16 Power 7 | . . . . . . . 1 . . . 3 . . 3 Propulsion 24 | . . . . . . . 3 3 6 1 5 . . 6 Utility 12 | . . . . . . . 2 . 3 . 4 . . 3 Weapon 10 | . 1 . . . . . 1 1 1 . 2 . . 4 Highest Loss Streak 12 | . 1 . . . . . 6 4 3 1 12 . . 9 To Critical Strikes . | . . . . . . . . . . . . . . . Average Slot Usage (%) 91 | . 98 99 100 100 100 96 95 96 93 93 85 91 86 79 Engine 7 | . 14 11 11 11 11 9 6 7 6 7 4 6 4 3 Reactor 1 | . . . . . . . . . . . . . 3 6 Treads 3 | . 23 3 . . . . 2 . . . . . 8 8 Leg 24 | . . 40 44 44 44 36 23 30 29 22 26 26 8 6 Wheel 1 | . 4 . . . . . 6 . . . . . . . Device 4 | . 12 11 2 . . . 7 9 1 5 3 5 6 2 Storage 8 | . 14 11 11 11 11 9 9 9 9 7 7 6 6 6 Processor 10 | . . . . . . 15 18 18 18 15 7 12 13 13 Hackware 1 | . . . . . . . . . . . 3 . 6 3 Protection 6 | . . . 8 11 11 9 . . 6 7 6 11 6 8 Energy Gun 8 | . 13 15 22 22 22 18 15 12 . . 3 5 . . Impact Weapon 4 | . . . . . . . . . 16 15 10 6 . 1 Slashing Weapon 2 | . . . . . . . . . . 6 6 6 6 3 Naked Turns . | . . . . . . . . . . . . . . . Heaviest Build 83 | 12 29 34 36 36 36 36 37 38 40 44 46 48 70 83 Greatest Support 140 | 32 40 40 50 50 50 50 63 63 53 68 68 52 140 140 Greatest Overweight (x) 5 | . . . . . . . 2 . 1 1 1 . . 5 Average Overweight (x) . | . . . . . . . . . . . . . . . Largest Inventory Capacity 15 | 8 15 15 15 15 15 15 15 15 15 15 15 15 15 15 Average Capacity 14 | 6 12 15 15 15 15 15 15 15 15 15 15 15 15 15 Most Carried 15 | 7 10 11 14 15 15 14 15 15 15 15 15 13 15 15 Average Carried 12 | 3 7 9 12 14 15 13 14 14 14 14 12 11 13 13 Final Capacity 15 | 8 15 15 15 15 15 15 15 15 15 15 15 15 15 15 Final Carried 15 | 7 10 11 14 15 15 13 15 14 14 15 13 12 15 10 Class Distribution -------------------- 47% | Scavenger-Mutant 40% | Mutant 4% | Commander-Mutant 3% | Gladiator Dominant Class ---------------- Mutant | -10/Materials Mutant | -9/Materials Mutant | -9/Mines Mutant | -9/Exiles Mutant | -8/Mines Mutant | -8/Materials Scavenger-Mutant | -8/Garrison Scavenger-Mutant | -8/Materials Scavenger-Mutant | -8/Garrison Scavenger-Mutant | -7/Factory Mutant | -7/Garrison Scavenger-Mutant | -6/Factory Scavenger-Mutant | -6/Waste Mutant | -6/Factory Resources | -11 -10 -9 -9 -9 -8 -8 -8 -8 -8 -7 -7 -6 -6 -6 ----------- Run | Jun Mat Mat Min Exi Min Mat Gar Mat Gar Fac Gar Fac Was Fac Matter Collected 2111 | 181 175 76 71 . 30 . 363 74 305 131 240 35 140 290 Remotely . | . . . . . . . . . . . . . . . Salvage Created 4880 | . 213 76 244 . . . 426 258 481 223 600 35 637 1687 Parts 190 | . 11 6 22 . . . 15 16 18 10 28 1 12 51 Haulers Intercepted 2 | . 1 . . . . . . . . 1 . . . . Recyclers Shooed 1 | . . . 1 . . . . . . . . . . . Parts Field Recycled . | . . . . . . . . . . . . . . . Retrieved Matter . | . . . . . . . . . . . . . . . Parts Self-Destructed . | . . . . . . . . . . . . . . . Prevented . | . . . . . . . . . . . . . . . Kills | -11 -10 -9 -9 -9 -8 -8 -8 -8 -8 -7 -7 -6 -6 -6 ------- Run | Jun Mat Mat Min Exi Min Mat Gar Mat Gar Fac Gar Fac Was Fac Combat Hostiles Destroyed 92 | . 4 1 7 . . . 14 10 17 4 14 . 2 19 Melee 38 | . . . . . . . . . 5 3 12 . 2 16 Guns 19 | . 4 1 7 . . . 6 1 . . . . . . Cannons 2 | . . . . . . . . . . . . . . 2 AOE 23 | . . . . . . . 7 9 7 . . . . . Classes Destroyed 16 | . 2 2 4 . . . 1 2 1 2 1 . 1 . Worker 2 | . . . 2 . . . . . . . . . . . Builder 1 | . . . . . . . . 1 . . . . . . Tunneler 1 | . . . 1 . . . . . . . . . . . Hauler 2 | . 1 . . . . . . . . 1 . . . . Recycler 6 | . . . 1 . . . . . . . . . . 5 Operator 1 | . . . . . . . . . . 1 . . . . Watcher 3 | . . 1 . . . . . 1 . . . 1 . . Swarmer 20 | . . . 7 . . . 3 3 4 . . . . 3 Cutter 3 | . . . . . . . . . . . 3 . . . Grunt 39 | . 4 . . . . . 6 5 9 2 5 . . 8 Duelist 5 | . . . . . . . 1 . 2 . 1 . . 1 Sentry 13 | . . 1 . . . . 4 1 1 . 4 . . 2 Demolisher 1 | . . . . . . . . 1 . . . . . . Hunter 5 | . . . . . . . . . 1 . 1 . . 3 Programmer 4 | . . . . . . . . . . 2 . . . 2 Compactor 2 | . . . . . . . . . . . . . 2 . Best Kill Streak 8 | . 2 1 4 . . . 4 8 5 2 3 1 1 8 Combat Bots Only 7 | . 2 1 3 . . . 4 7 5 2 3 . 1 4 Max Kills in Single Turn 3 | . 1 1 1 . . . 3 3 2 1 1 1 1 1 Gunslinging . | . . . . . . . . . . . . . . . Exploded 3 | . . . . . . . 3 3 2 . . . . . Melee 1 | . . . . . . . . . 1 1 1 . 1 1 Uniques/NPCs Destroyed . | . . . . . . . . . . . . . . . Combat | -11 -10 -9 -9 -9 -8 -8 -8 -8 -8 -7 -7 -6 -6 -6 -------- Run | Jun Mat Mat Min Exi Min Mat Gar Mat Gar Fac Gar Fac Was Fac Damage Taken 10999 | . 439 73 351 . . 108 772 632 1060 193 2573 . . 4798 Core 1582 | . 93 . 69 . . . 169 44 126 25 563 . . 493 Absorbed by Shields 227 | . . . . . . . . . . 44 65 . . 118 Redirected to Shielding 214 | . . . . . . . . . . 6 100 . . 108 Core Remaining (%) 59 | 100 62 . . . 82 . . . 38 . 16 . . . Volleys Fired 176 | . 30 11 27 . . . 42 16 9 . 6 3 10 22 Largest 3 | . 2 2 2 . . . 2 2 1 . 1 1 1 3 Hottest 173 | . 70 126 126 . . . 128 132 33 . 80 5 5 173 Shots Fired 267 | . 55 22 35 . . . 64 23 9 . 6 3 10 40 Gun 202 | . 55 22 35 . . . 56 17 . . 1 . . 16 Cannon 24 | . . . . . . . . . . . . . . 24 Launcher 23 | . . . . . . . 8 6 9 . . . . . Special 18 | . . . . . . . . . . . 5 3 10 . Kinetic 55 | . 30 6 . . . . 5 . . . . . . 14 Thermal 166 | . 25 16 35 . . . 51 17 . . 1 . . 21 Explosive 23 | . . . . . . . 8 6 9 . . . . . Electromagnetic 5 | . . . . . . . . . . . . . . 5 Robot Hit Streak 13 | . 7 8 2 . . . 13 10 . . 11 5 11 10 Robot Miss Streak 5 | . 5 3 4 . . . 3 2 . . 2 . 1 5 Penetration Max . | . . . . . . . . . . . . . . . Secondary Targets 1 | . 1 . . . . . . . . . . . . . Max Gunslinging Chain 1 | . 1 . . . . . . . . . . . . . Shots Hit Robots 329 | . 35 14 12 . . . 42 17 21 11 49 4 27 97 Core Hits 182 | . 11 3 13 . . . 32 26 18 4 13 1 3 58 Critical Kills 2 | . 1 . . . . . . . . . . . . 1 Critical Parts Destroyed 11 | . 1 . . . . . . . 2 1 3 . . 4 Critical Strikes 45 | . 3 1 3 . . . 4 . 2 2 6 . 4 20 Burn 9 | . 1 1 3 . . . 4 . . . . . . . Destroy 2 | . 2 . . . . . . . . . . . . . Smash 11 | . . . . . . . . . 2 1 3 . . 5 Sever 10 | . . . . . . . . . . 1 3 . . 6 Impale 13 | . . . . . . . . . . . . . 4 9 Melee Attacks 234 | . . . . . . . . . 42 12 79 3 19 79 Impact 84 | . . . . . . . . . 42 6 24 1 . 11 Slashing 98 | . . . . . . . . . . 6 55 2 3 32 Piercing 52 | . . . . . . . . . . . . . 16 36 Sneak Attacks 30 | . . . . . . . . . . 3 . . 19 8 Combat Hostiles 19 | . . . . . . . . . . . . . 19 . Follow-up Attacks 25 | . . . . . . . . . 8 2 10 1 3 1 Damage Inflicted 12854 | . 449 191 296 . . . 1459 1182 1825 630 1877 52 855 4038 Guns 2069 | . 449 191 222 . . . 674 222 . . . . . 311 Cannons 464 | . . . . . . . . . . . . . . 464 Explosions 2540 | . . . . . . . 785 956 799 . . . . . Melee 7703 | . . . . . . . . . 1026 630 1877 52 855 3263 Ramming 78 | . . . 74 . . . . 4 . . . . . . Kinetic 626 | . 262 39 . . . . 71 . . . . . . 254 Thermal 1778 | . 187 152 222 . . . 603 222 . . . . . 392 Explosive 2540 | . . . . . . . 785 956 799 . . . . . Electromagnetic 129 | . . . . . . . . . . . . . . 129 Impact 2461 | . . . . . . . . . 1026 304 694 52 . 385 Slashing 3051 | . . . . . . . . . . 326 1183 . 102 1440 Piercing 2191 | . . . . . . . . . . . . . 753 1438 Highest Corruption 8 | . . . . . . . 5 5 5 . . . . 8 Average Corruption 3 | . . . . . . . 1 5 5 . . . . 2 Corruption Purged . | . . . . . . . . . . . . . . . Corruption Blocked . | . . . . . . . . . . . . . . . Effects 46 | . . . . . . . 8 6 21 . . . . 11 Message Errors 14 | . . . . . . . 3 . 7 . . . . 4 Matter Fused 8 | . . . . . . . . 2 5 . . . . 1 Heat Flow Errors 5 | . . . . . . . 1 . 3 . . . . 1 Energy Discharges 10 | . . . . . . . 1 2 4 . . . . 3 Parts Rejected 2 | . . . . . . . 1 . . . . . . 1 Data Loss (minor) 5 | . . . . . . . 2 1 1 . . . . 1 Data Loss (major) 1 | . . . . . . . . . 1 . . . . . Weapon Failures 1 | . . . . . . . . 1 . . . . . . Overload Shots . | . . . . . . . . . . . . . . . Overflow Damage 1037 | . . . . . . . . 18 239 118 206 . . 456 Projectiles 19 | . . . . . . . . . . . . . . 19 Explosions 28 | . . . . . . . . 18 10 . . . . . Melee 990 | . . . . . . . . . 229 118 206 . . 437 Knockbacks 8 | . . . . . . . . . 3 2 2 . . 1 Impact 7 | . . . . . . . . . 3 2 1 . . 1 Kinetic . | . . . . . . . . . . . . . . . Secondary 1 | . . . . . . . . . . . 1 . . . Self-Inflicted Damage 140 | . . . . . . . . . 140 . . . . . Shots 4 | . . . . . . . . . 4 . . . . . Rammed . | . . . . . . . . . . . . . . . Targets Rammed 10 | . . . 9 . . . . 1 . . . . . . Kicked 10 | . . . 9 . . . . 1 . . . . . . Crushed . | . . . . . . . . . . . . . . . Highest Temperature 424 | . 163 144 320 . . . 259 60 260 358 26 . . 424 Average Temperature 96 | . 57 68 144 . . . 81 26 83 185 8 . . 107 Received Heat Transfer 2566 | . 267 9 . . . 36 252 99 288 45 821 . . 749 Effects 7 | . . . 4 . . . . . . . . . . 3 Energy Bleed 2 | . . . 2 . . . . . . . . . . . Interference 5 | . . . 2 . . . . . . . . . . 3 Siege Activations . | . . . . . . . . . . . . . . . Robots Corrupted . | . . . . . . . . . . . . . . . Combat Hostiles . | . . . . . . . . . . . . . . . Parts Fried 16 | . . . . . . . . . 6 2 3 . . 5 Impact Corruptions 24 | . . . . . . . . . 11 1 7 . . 5 Robots Melted 1 | . . . . . . . 1 . . . . . . . Combat Hostiles 1 | . . . . . . . 1 . . . . . . . Parts Melted 15 | . . 1 2 . . . 9 1 . . 1 . . 1 Heat Transferred 4199 | . 546 409 703 . . . 1628 444 . . . . . 469 Parts Sabotaged . | . . . . . . . . . . . . . . . Parts Stolen . | . . . . . . . . . . . . . . . Parts Stripped . | . . . . . . . . . . . . . . . Power Chain Reactions . | . . . . . . . . . . . . . . . Missiles Intercepted . | . . . . . . . . . . . . . . . Alert | -11 -10 -9 -9 -9 -8 -8 -8 -8 -8 -7 -7 -6 -6 -6 ------- Run | Jun Mat Mat Min Exi Min Mat Gar Mat Gar Fac Gar Fac Was Fac Peak Influence 1039 | . 109 84 154 . . . 1039 767 987 623 685 396 83 277 Initial 518 | . . 45 32 . . . 2 496 498 518 325 359 68 54 Average 355 | . 58 67 57 . . . 538 640 841 523 560 343 77 139 Maximum Alert Level 3 | . . . . . . . 3 3 3 2 2 1 . 1 Low Security (%) 42 | 100 100 100 100 . 100 100 23 . . . . 11 100 58 Level 1 14 | . . . . . . . 9 . . . 9 88 . 41 Level 2 28 | . . . . . . . 37 55 21 100 90 . . . Level 3 13 | . . . . . . . 29 44 78 . . . . . Level 4 . | . . . . . . . . . . . . . . . Level 5 . | . . . . . . . . . . . . . . . High Security . | . . . . . . . . . . . . . . . Max Security . | . . . . . . . . . . . . . . . Squads Dispatched 11 | . . . . . . 1 . 3 . 4 . . . 3 Investigation 2 | . . . . . . . . . . 2 . . . . Extermination 3 | . . . . . . . . . . 2 . . . 1 Reinforcement 3 | . . . . . . 1 . 1 . . . . . 1 Assault 1 | . . . . . . . . . . . . . . 1 Garrison 2 | . . . . . . . . 2 . . . . . . Intercept . | . . . . . . . . . . . . . . . Searches Triggered . | . . . . . . . . . . . . . . . Construction Impeded . | . . . . . . . . . . . . . . . Haulers Reinforced 1 | . . . . . . . . . . . . . . 1 Active Scanning Responses . | . . . . . . . . . . . . . . . Cargo Convoy Interrupts 1 | . . . . . . . . . . . . . . 1 Stealth | -11 -10 -9 -9 -9 -8 -8 -8 -8 -8 -7 -7 -6 -6 -6 --------- Run | Jun Mat Mat Min Exi Min Mat Gar Mat Gar Fac Gar Fac Was Fac Distress Signals 3 | . . . . . . . . 2 . . . . . 1 Communications Jammed . | . . . . . . . . . . . . . . . Distress Signals . | . . . . . . . . . . . . . . . Times Spotted 161 | . 6 3 9 . . 2 23 14 21 6 24 3 6 44 Peak Tracking Total 13 | . 3 2 4 . . 2 6 8 5 2 8 2 2 13 Tactical Retreats 13 | . . . 1 . . . 1 . 2 . 4 . . 5 Traps | -11 -10 -9 -9 -9 -8 -8 -8 -8 -8 -7 -7 -6 -6 -6 ------- Run | Jun Mat Mat Min Exi Min Mat Gar Mat Gar Fac Gar Fac Was Fac Traps Triggered 12 | . . . . . . . 7 . . 1 1 1 . 2 Indirectly . | . . . . . . . . . . . . . . . Trap Hack Attempts . | . . . . . . . . . . . . . . . Triggered . | . . . . . . . . . . . . . . . Disarmed . | . . . . . . . . . . . . . . . Reprogrammed . | . . . . . . . . . . . . . . . Reused . | . . . . . . . . . . . . . . . Traps Extracted . | . . . . . . . . . . . . . . . Installed . | . . . . . . . . . . . . . . . Triggered . | . . . . . . . . . . . . . . . Machines | -11 -10 -9 -9 -9 -8 -8 -8 -8 -8 -7 -7 -6 -6 -6 ---------- Run | Jun Mat Mat Min Exi Min Mat Gar Mat Gar Fac Gar Fac Was Fac Machines Disabled 7 | . . 1 . . . . 3 1 1 . 1 . . . Max in Single Turn 2 | . . 1 . . . . 2 1 1 . 1 . . . Garrison Access 1 | . . . . . . . . . . . . . . 1 Garrison Relay 3 | . . . . . . . 1 . 1 . 1 . . . Phase Generator 1 | . . . . . . . 1 . . . . . . . Machines Repaired . | . . . . . . . . . . . . . . . Machines Sabotaged . | . . . . . . . . . . . . . . . Overloaded Fab Kills . | . . . . . . . . . . . . . . . Hacking | -11 -10 -9 -9 -9 -8 -8 -8 -8 -8 -7 -7 -6 -6 -6 --------- Run | Jun Mat Mat Min Exi Min Mat Gar Mat Gar Fac Gar Fac Was Fac Machines Accessed 28 | . 4 1 2 1 . 1 4 2 2 3 3 2 . 3 Terminals 20 | . 4 1 1 . . . 4 1 2 2 3 2 . . Fabricators 1 | . . . . . . . . . . . . . . 1 Repair Stations 1 | . . . . . . . . . . . . . . 1 Recycling Units 1 | . . . . . . . . . . . . . . 1 Scanalyzers . | . . . . . . . . . . . . . . . Garrison Access 3 | . . . . . . 1 . 1 . 1 . . . . Total Hacks 53 | . 10 3 6 1 . 1 7 3 4 7 5 2 . 4 Successful 24 | . 6 1 2 1 . 1 3 2 1 3 2 . . 2 Failed 27 | . 3 2 3 . . . 4 1 3 4 3 2 . 2 Catastrophic 9 | . . 2 1 . . . . 1 2 . 1 2 . . Database Lockouts 2 | . 1 . 1 . . . . . . . . . . . Manual 18 | . 7 . 5 . . . . 2 . 3 . . . 1 Terminals 44 | . 10 3 5 . . . 7 2 4 6 5 2 . . Fabricators 1 | . . . . . . . . . . . . . . 1 Repair Stations 1 | . . . . . . . . . . . . . . 1 Recycling Units 2 | . . . . . . . . . . . . . . 2 Scanalyzers . | . . . . . . . . . . . . . . . Garrison Access 3 | . . . . . . 1 . 1 . 1 . . . . Terminal Hacks 15 | . 4 1 2 1 . . 3 . 1 1 2 . . . Record 1 | . . . . 1 . . . . . . . . . . Robot Analysis 2 | . 1 . 1 . . . . . . . . . . . Prototype ID Bank 1 | . . . . . . . . . . 1 . . . . Open Door 3 | . . . 1 . . . 1 . 1 . . . . . Level Access Points 1 | . 1 . . . . . . . . . . . . . Emergency Access Points 2 | . . . . . . . 1 . . . 1 . . . Unreport Threat 1 | . . 1 . . . . . . . . . . . . Zone Layout 2 | . 2 . . . . . . . . . . . . . Garrison Registry 1 | . . . . . . . . . . . 1 . . . Security Stations 1 | . . . . . . . 1 . . . . . . . Fabricator Hacks . | . . . . . . . . . . . . . . . Repair Station Hacks . | . . . . . . . . . . . . . . . Recycling Unit Hacks 1 | . . . . . . . . . . . . . . 1 Retrieve Components 1 | . . . . . . . . . . . . . . 1 Scanalyzer . | . . . . . . . . . . . . . . . Garrison Access Hacks 3 | . . . . . . 1 . 1 . 1 . . . . Unlock Access 3 | . . . . . . 1 . 1 . 1 . . . . Unauthorized Hacks 5 | . 2 . . . . . . 1 . 1 . . . 1 Terminals 4 | . 2 . . . . . . 1 . 1 . . . . Track 1 | . 1 . . . . . . . . . . . . . Assimilate 1 | . . . . . . . . 1 . . . . . . Botnet 2 | . 1 . . . . . . . . 1 . . . . Fabricators . | . . . . . . . . . . . . . . . Repair Stations . | . . . . . . . . . . . . . . . Recycling Units 1 | . . . . . . . . . . . . . . 1 Mask 1 | . . . . . . . . . . . . . . 1 Scanalyzers . | . . . . . . . . . . . . . . . Garrison Access . | . . . . . . . . . . . . . . . Data Cores Recovered . | . . . . . . . . . . . . . . . Used . | . . . . . . . . . . . . . . . Hacking Detections 22 | . 3 1 1 . . 1 3 2 1 2 3 2 . 3 Full Trace Events 2 | . . . . . . . 1 . . 1 . . . . Feedback Events 1 | . . . . . . . 1 . . . . . . . Corruption 1 | . . . . . . . 1 . . . . . . . Feedback Blocked . | . . . . . . . . . . . . . . . Robot Schematics Acquired . | . . . . . . . . . . . . . . . Robots Built . | . . . . . . . . . . . . . . . Authchips . | . . . . . . . . . . . . . . . Time . | . . . . . . . . . . . . . . . Total Robot Build Rating . | . . . . . . . . . . . . . . . Part Schematics Acquired . | . . . . . . . . . . . . . . . Parts Built . | . . . . . . . . . . . . . . . Authchips . | . . . . . . . . . . . . . . . Time . | . . . . . . . . . . . . . . . Total Part Build Rating . | . . . . . . . . . . . . . . . Parts Repaired . | . . . . . . . . . . . . . . . Time . | . . . . . . . . . . . . . . . Parts Recycled . | . . . . . . . . . . . . . . . Recycled Matter . | . . . . . . . . . . . . . . . Retrieved Matter . | . . . . . . . . . . . . . . . Retrieved Components 10 | . . . . . . . . . . . . . . 10 Parts Scanalyzed . | . . . . . . . . . . . . . . . Part Schematics Acquired . | . . . . . . . . . . . . . . . Parts Damaged . | . . . . . . . . . . . . . . . Bothacking | -11 -10 -9 -9 -9 -8 -8 -8 -8 -8 -7 -7 -6 -6 -6 ------------ Run | Jun Mat Mat Min Exi Min Mat Gar Mat Gar Fac Gar Fac Was Fac Used RIF Installer 3 | . . . . . . . 1 . 1 . 1 . . . Hotswap 1 | . . . . . . . . . 1 . . . . . Command Fork 1 | . . . . . . . . . . . 1 . . . Robots Hacked 12 | . . . . . . . . . . . 4 2 6 . Non-combat 2 | . . . . . . . . . . . . 2 . . Combat 10 | . . . . . . . . . . . 4 . 6 . Robot Hacks Applied 16 | . . . . . . . . . . . 4 3 9 . parse_system 1 | . . . . . . . . . . . 1 . . . map_route 2 | . . . . . . . . . . . . 2 . . mark_security 1 | . . . . . . . . . . . . 1 . . ignore_targets 9 | . . . . . . . . . . . . . 9 . amplify_resonance 1 | . . . . . . . . . . . 1 . . . overwrite_iff 2 | . . . . . . . . . . . 2 . . . Relay Couplers Released 14 | . . . . . . . 3 . 4 . 5 . . 2 Machine Destruction 14 | . . . . . . . 3 . 4 . 5 . . 2 Attached 2 | . . . . . . . . . . . 1 1 . . Fabnet Peak Effective % . | . . . . . . . . . . . . . . . Robots Rewired 11 | . . . . . . . 9 . . . 2 . . . Allies Hacked . | . . . . . . . . . . . . . . . Hacks Repelled . | . . . . . . . . . . . . . . . Allies | -11 -10 -9 -9 -9 -8 -8 -8 -8 -8 -7 -7 -6 -6 -6 -------- Run | Jun Mat Mat Min Exi Min Mat Gar Mat Gar Fac Gar Fac Was Fac Total Allies 31 | . . . 2 . . . 9 1 2 . 4 12 1 . Largest Group 8 | . . . 2 2 . . 8 1 2 . 2 4 1 . Highest-Rated Group 219 | . . . 45 45 . . 219 10 45 . 51 118 31 . Highest-Rated Ally 40 | . . . 31 31 . . 40 10 25 . 32 31 31 . Total Orders . | . . . . . . . . . . . . . . . Ally Attacks 104 | . . . 1 . . . 62 . 12 . 10 . 19 . Total Damage 2195 | . . . . . . . 1450 . 209 . 198 . 338 . Kills 26 | . . . . . . . 22 . 3 . 1 . . . Allies Corrupted . | . . . . . . . . . . . . . . . Allies Melted . | . . . . . . . . . . . . . . . Intel | -11 -10 -9 -9 -9 -8 -8 -8 -8 -8 -7 -7 -6 -6 -6 ------- Run | Jun Mat Mat Min Exi Min Mat Gar Mat Gar Fac Gar Fac Was Fac Robot Analysis Total 2 | . 1 . 1 . . . . . . . . . . . Derelict Logs Recovered 1 | . . . 1 . . . . . . . . . . . Drone Launches . | . . . . . . . . . . . . . . . Drone Recoveries . | . . . . . . . . . . . . . . . Exploration | -11 -10 -9 -9 -9 -8 -8 -8 -8 -8 -7 -7 -6 -6 -6 ------------- Run | Jun Mat Mat Min Exi Min Mat Gar Mat Gar Fac Gar Fac Was Fac Turns Passed 7634 | 59 336 235 1013 226 109 24 1105 149 796 725 785 451 356 1265 Spaces Moved 4466 | 45 166 148 768 185 89 18 685 77 440 372 405 352 189 527 Core 1 | 1 . . . . . . . . . . . . . . Treads 647 | . 125 . . . . . . . . . . . 131 391 Legs 3511 | . . 148 768 185 89 18 463 77 440 372 405 352 58 136 Wheels 307 | 44 41 . . . . . 222 . . . . . . . Hover . | . . . . . . . . . . . . . . . Flight . | . . . . . . . . . . . . . . . Fastest Speed 50 | 50 100 120 120 122 122 122 100 120 120 125 122 122 122 160 Average Speed 136 | 98 145 120 120 122 122 122 117 120 146 179 129 122 148 169 Slowest Speed 470 | 100 160 120 122 122 122 122 260 122 190 193 200 122 160 470 Overloaded Moves . | . . . . . . . . . . . . . . . Propulsion Burnouts . | . . . . . . . . . . . . . . . Robots Hopped . | . . . . . . . . . . . . . . . Cave-ins Triggered . | . . . . . . . . . . . . . . . Exploration Rate (%) 38 | 4 31 13 100 50 30 9 93 19 60 11 56 9 83 14 Regions Visited 14 Branch Regions 3 Pre-discovered Areas . | . . . . . . . . . . . . . . . Known Exits Taken 4 | . 1 . . . . 1 . 1 . 1 . . . . Unknown Exits Taken 5 | 1 . 1 1 1 1 . . . . . . . . . Scrap Searched 3 | . . . 2 . 1 . . . . . . . . . Spaces Dug 45 | . . . . . . . 6 10 28 . 1 . . . Terrain Destroyed 168 | . . . . . . . 97 41 28 . 1 . . 1 Melee 4 | . . . . . . . . . 3 . 1 . . . Projectile 1 | . . . . . . . . . . . . . . 1 AOE 163 | . . . . . . . 97 41 25 . . . . . Terrain Rammed . | . . . . . . . . . . . . . . . Walls Destroyed . | . . . . . . . . . . . . . . . Machines Disabled . | . . . . . . . . . . . . . . . Actions | -11 -10 -9 -9 -9 -8 -8 -8 -8 -8 -7 -7 -6 -6 -6 --------- Run | Jun Mat Mat Min Exi Min Mat Gar Mat Gar Fac Gar Fac Was Fac Total 5389 | 57 204 184 820 185 90 20 921 108 525 416 550 369 236 704 Wait 111 | . . 4 13 . . . 26 . 22 1 16 . . 29 Move 4456 | 44 165 147 767 184 88 18 684 77 439 372 404 352 188 527 Hop . | . . . . . . . . . . . . . . . Pick Up 75 | 8 3 7 2 . . . 15 3 5 8 7 2 6 9 Fast Attach 60 | 4 2 2 . . . . 11 2 6 9 6 2 4 12 Attach 42 | 1 1 2 . . . 2 5 3 4 1 9 2 . 12 Detach 2 | . . . . . . . 1 . . . . 1 . . Swap 48 | . 3 4 2 1 1 . 12 3 5 2 8 2 1 4 Drop 72 | . . 7 . . 1 . 18 3 2 14 2 3 11 11 Fire 176 | . 30 11 27 . . . 42 16 9 . 6 3 10 22 Melee 201 | . . . . . . . . . 33 9 63 2 16 78 Ram . | . . . . . . . . . . . . . . . Kick 10 | . . . 9 . . . . 1 . . . . . . Crush . | . . . . . . . . . . . . . . . Escape Stasis 17 | . . . . . . . 17 . . . . . . . Rewire 119 | . . . . . . . 90 . . . 29 . . . Trap . | . . . . . . . . . . . . . . . Miscellaneous . | . . . . . . . . . . . . . . . Route ------- -11/Junkyard -10/Materials (discovered 3 exits: *Mat x3) -9/Materials -9/Mines (discovered 3 exits: *Mat x2 / *Exi) -9/Exiles -8/Mines -8/Materials -8/Garrison (discovered 3 exits: *Mat x3) -8/Materials -8/Garrison (discovered 2 exits: *Fac x2) -7/Factory (discovered 2 exits: *Fac / Gar) -7/Garrison (discovered 4 exits: *Fac x3 / [Fac]) -6/Factory -6/Waste -6/Factory History --------- Turn | Location | Event 7 | -11/Junkyard | Discovered new exit (range 16) 60 | -11/Junkyard | Entered Materials 199 | -10/Materials | Central database locked down 216 | -10/Materials | Identified exit to Materials 305 | -10/Materials | Build established: Mutant 396 | -10/Materials | Entered another Materials area 396 | -9/Materials | Evolved 2 slots: Propulsion x2 477 | -9/Materials | Discovered new exit (range 14) 631 | -9/Materials | Entered Mines 748 | -9/Mines | Received a Rocket Launcher from a helpful Derelict 812 | -9/Mines | Central database locked down 1111 | -9/Mines | Discovered new exit (range 11) 1179 | -9/Mines | Learned Materials garrison access intel 1495 | -9/Mines | Discovered new exit (range 14) 1540 | -9/Mines | Met a Derelict who couldn't figure out how to use a Trap Extractor 1626 | -9/Mines | Deemed a non-threat by the Exiles lab entrance 1626 | -9/Mines | Discovered new exit (range 5) 1644 | -9/Mines | Entered Exiles 1644 | -9/Exiles | Found Exiles lab abandoned 1644 | -9/Exiles | Accompanied by 2 allies 1674 | -9/Exiles | Led the pair of lost Derelicts to a safe place 1857 | -9/Exiles | Discovered new exit (range 10) 1870 | -9/Exiles | Entered Mines 1966 | -8/Mines | Discovered new exit (range 11) 1979 | -8/Mines | Entered Materials 1979 | -8/Materials | Evolved 2 slots: Utility x2 1980 | -8/Materials | Loaded intel: 1 garrison access location 2003 | -8/Materials | Identified exit to Garrison 2003 | -8/Materials | Entered Garrison 2036 | -8/Garrison | Triggered checkpoint 2144 | -8/Garrison | Lost 6 parts (1p3n2u) 2267 | -8/Garrison | Phase Generator disabled 2286 | -8/Garrison | Installed Relay Interface Framework 2309 | -8/Garrison | Learned Materials security intel 2336 | -8/Garrison | Garrison Relay disabled 2514 | -8/Garrison | Triggered checkpoint 2544 | -8/Garrison | Triggered checkpoint 2597 | -8/Garrison | Discovered new exit (range 9) 2781 | -8/Garrison | Discovered new exit (range 10) 2798 | -8/Garrison | Triggered checkpoint 2900 | -8/Garrison | Triggered checkpoint 2922 | -8/Garrison | Triggered checkpoint 2974 | -8/Garrison | Triggered checkpoint 2995 | -8/Garrison | Build established: Scavenger-Mutant 3085 | -8/Garrison | Discovered new exit (range 11) 3108 | -8/Garrison | Entered Materials 3156 | -8/Materials | Garrison activated, responded to threat 3214 | -8/Materials | Destroyed 7 combat bots 3224 | -8/Materials | Lost 4 parts (3n1w) 3257 | -8/Materials | Identified exit to Garrison 3257 | -8/Materials | Entered Garrison 3288 | -8/Garrison | Triggered checkpoint 3322 | -8/Garrison | Rescued a captive Derelict 3322 | -8/Garrison | Rescued a captive Derelict 3372 | -8/Garrison | Triggered checkpoint 3422 | -8/Garrison | Lost 3 parts (2n1u) 3483 | -8/Garrison | Core integrity fell below 50% 3528 | -8/Garrison | Triggered checkpoint 3566 | -8/Garrison | Triggered checkpoint 3664 | -8/Garrison | Discovered new exit (range 10) 3716 | -8/Garrison | Triggered checkpoint 3774 | -8/Garrison | Lost 3 parts (2n1u) 3962 | -8/Garrison | Expanded RIF knowledge: Hotswap 4032 | -8/Garrison | Discovered new exit (range 12) 4053 | -8/Garrison | Entered Factory 4053 | -7/Factory | Evolved 2 slots: Utility x1, Weapon x1 4316 | -7/Factory | Discovered new exit (range 8) 4778 | -7/Factory | Identified exit to Garrison 4778 | -7/Factory | Entered Garrison 4812 | -7/Garrison | Triggered checkpoint 4980 | -7/Garrison | Build established: Mutant 5096 | -7/Garrison | Triggered checkpoint 5102 | -7/Garrison | Triggered checkpoint 5116 | -7/Garrison | Core integrity fell below 50% 5153 | -7/Garrison | Core integrity fell below 20% 5175 | -7/Garrison | Lost 12 parts (2p5n3u2w) 5234 | -7/Garrison | Expanded RIF knowledge: Command Fork 5272 | -7/Garrison | Discovered new exit (range 5) 5314 | -7/Garrison | Triggered checkpoint 5350 | -7/Garrison | Garrison Relay disabled 5436 | -7/Garrison | Discovered new exit (range 23) 5436 | -7/Garrison | Discovered new exit (range 30) 5436 | -7/Garrison | Discovered new exit (range 60) 5436 | -7/Garrison | Discovered new exit (range 51) 5563 | -7/Garrison | Entered Factory 5563 | -6/Factory | Evolved 2 slots: Power x1, Utility x1 5777 | -6/Factory | Build established: Scavenger-Mutant 5943 | -6/Factory | Discovered new exit (range 106) 6014 | -6/Factory | Manually triggered Chute Trap 6014 | -6/Factory | Sucked down chute 6014 | -6/Factory | Entered Waste 6015 | -6/Waste | Met a frightened Derelict 6023 | -6/Waste | Found Enh. Force Lance 6024 | -6/Waste | Spotted C-40 Crusher 6035 | -6/Waste | Spotted C-40 Crusher 6059 | -6/Waste | Spotted C-40 Crusher 6077 | -6/Waste | Spotted C-40 Crusher 6101 | -6/Waste | Spotted C-40 Crusher 6106 | -6/Waste | Destroyed C-40 Crusher 6128 | -6/Waste | Spotted C-40 Crusher 6191 | -6/Waste | Discovered new exit (range 16) 6275 | -6/Waste | Destroyed C-40 Crusher 6289 | -6/Waste | Found Damper Plating 6370 | -6/Waste | Entered Factory 6876 | -6/Factory | Lost 3 parts (2p1u) 7465 | -6/Factory | Build established: Mutant 7590 | -6/Factory | Core integrity fell below 50% 7622 | -6/Factory | Cargo convoy interrupted 7635 | -6/Factory | Self-destructed Last Messages --------------- 07603_ Penetrated by Slug. 07604_ K-01 Serf collects debris. 07606_ Acquired 5 matter. 07607_ K-01 Serf collects debris. 07607_ Penetrated by Slug. 07607_ A-15 Conveyor destroyed. 07609_ Acquired 5 matter. 07612_ Penetrated by Slug. 07615_ Acquired 8 matter. 07618_ H-66 Slayer destroyed. 07619_ Acquired 17 matter. 07621_ C-30 ARC bursts open, deploying its payload. 07621_ X-67 Chaingunner unfolds itself. 07622_ ALERT: Cargo convoy interrupted, initiating access lockdown. 07624_ Carbon-fiber Leg destroyed. 07624_ System corrupted by crushing effect (+5). 07626_ Knocked back. 07627_ Acquired Gatling Laser. 07631_ P-60 Hacker resets Y-54 Guardian, system corruption cleaned. 07633_ P-60 Hacker resets B-48 Gladiator, system corruption cleaned. Map ----- +----------------------------------------------------+ | ?????????????????????????????????????????????????? | | ?????????????????????????????????????????????????? | | ?????????????????????????????????????????????????? | | ?????????????????????????????????????????????????? | | ??????????????????????????????? ?????????????????? | | ??????????????????????????????? ?????????????????? | | ??????????????????????????????? ??????????####???? | | ??????????????????????????????? ????? ??? ] #???? | | ??????????????????????????????# ????+ ??? #???? | | ??????????????????????????????# ????# """ #???? | | ??????????????????????????????# ????# """ #???? | | ??????????????????????????????# #???# #???? | | ??????????????????????????????# #???# """ #???? | | ?????????????????############## #???# """ #???? | | ?????????????????# # #???# """ #???? | | ?????????????????# # #???# #???? | | ?????????????????# """"""" # #########+######## | | ?????????????????# """"""" # """ | | ????????????????## """"""" # "R" | | ????????????????# """"""" " % " " | | ?????????????????# Y%w u # | | ?????????????????# x""""""" + " | | ?????????????????#!!! """"""" ####"########## " | | ?????????????????#!!![""""""" # #???# " | | ???????????????###!!!iCx""""" # #???# | | ?????????T" +%" + [[xbpY@m[! # ##### | | ???????????????###;###=######## [] / | | ?????????????????????#*#??????#""!""""" # | | ?????????????????????# #??????#"Y!""""" / | | ????????????????????? ??????#"" """ ######% | | ????????????????????? ??????# *!!* #% %#%% | | ????????????????????? ?????###+##+#### %%+%% | | ????????????????????? ???????# #??# %%%##### | | ???????????????????? ???????# #??# ! %#???? | | ????????????????????######??????# #??# ! !#???? | | ??????????????????????????? # !! #???? | | ??????????????????????????# ### ##### ######???? | | ??????????????????????????#?????# #?????#????????? | | ????????????????????????????????#+#??????????????? | | ?????????????????????????????????????????????????? | | ?????????????????????????????????????????????????? | | ?????????????????????????????????????????????????? | | ?????????????????????????????????????????????????? | | ?????????????????????????????????????????????????? | | ?????????????????????????????????????????????????? | | ?????????????????????????????????????????????????? | | ?????????????????????????????????????????????????? | | ?????????????????????????????????????????????????? | | ?????????????????????????????????????????????????? | | ?????????????????????????????????????????????????? | +----------------------------------------------------+ Best States ------------- Heat Dissipation 45 Energy Generation 37 Energy Capacity 550 Matter Stores 300 Matter Capacity 300 Sight Range 18 Terrain Scan Density 10 Armor Coverage 600 Utility Shielding 66 Melee Speed Boost 20 Evasion (%) 59 Targeting Accuracy 12 Melee Accuracy 8 Target Analysis 6 Recoil Reduction 4 Force Boost 30 Relay Coupler Types 1 Relay Coupler Value 25 Item Schematics ----------------- None Robot Schematics ------------------ None Fabricated ------------ Nothing Alien Tech Used ----------------- None Achievements -------------- Assassin Challenges ------------ None Game ------ Seed BeamAbsorptionThrower Manual? 0 Play Time 01:04:09 Cumulative 116.3 hours Start 2023.12.05 @ 19:27:43 End 2023.12.05 @ 20:33:43 Sessions 1 Manual Loads 0 Difficulty Rogue Special Mode None Game No. 93 Rogue 90 Adventurer 3 Explorer 0 Win Type - Total 0 Types 0/0/0/0/0/0/0/0/0 Lore% 62 Gallery% 70 Achievement% 55 Wizard Run 0 Options --------- ASCII 0 Keyboard 0 Movement Mouse Keybinds 0 Fullscreen 2 Font 18/SmallcapsGlow Map View 76x50 Tactical HUD 1 Map Filters NONE Filters NONE Steam 1 RUN: b8aac1dc-ac7b-4795-95e9-2c912467fc81